bitfinex/quotes_SOLUSD_20240612
["timestamp","ask_amount","ask_price","bid_price","bid_amount"]
[1718186135055,0.863206,152.59,152.58,2.4249]
[1718186135965,0.863206,152.59,152.58,7.2748]
[1718186136176,0.863206,152.59,152.58,69.2494]
[1718186136682,0.863206,152.59,152.58,89.1694]
[1718186136853,6e-06,152.59,152.58,109.1694]
[1718186137287,6e-06,152.59,152.58,89.2494]
[1718186137774,6e-06,152.59,152.58,109.1694]
[1718186137959,6e-06,152.59,152.58,108.9994]
[1718186138159,6e-06,152.59,152.58,7.2748]
[1718186138362,6e-06,152.59,152.58,2.4249]
[1718186138966,6e-06,152.59,152.57,2.425]
[1718186139164,6e-06,152.59,152.55,4.8505]
[1718186139364,6e-06,152.59,152.58,2.4249]
[1718186139769,6e-06,152.59,152.58,7.2748]
[1718186140493,6e-06,152.59,152.58,2.4249]
[1718186140783,6e-06,152.59,152.55,2.4253]
[1718186140965,2.424806,152.59,152.54,2.4255]
[1718186141160,2.424806,152.59,152.44,10.0]
[1718186141161,2.4254,152.56,152.47,34.4968]
[1718186141365,6e-06,152.59,152.54,2.4254]
[1718186141595,6e-06,152.59,152.51,2.4259]
[1718186141596,20.9354,152.58,152.51,2.4259]
[1718186141766,2.4253,152.56,152.5,2.4261]
[1718186142080,16.0854,152.58,152.51,9.704]
[1718186142284,2.4251,152.57,152.49,7.2788]
[1718186142484,2.4251,152.57,152.52,2.4258]
[1718186142786,2.4251,152.57,152.49,7.2788]
[1718186142787,16.0854,152.58,152.41,49.48]
[1718186143084,2.4251,152.57,152.53,2.4257]
[1718186143267,2.4252,152.56,152.52,2.4258]
[1718186143475,2.4253,152.56,152.49,4.8525]
[1718186143676,16.0854,152.58,152.51,2.4259]
[1718186143677,2.4254,152.55,152.51,2.4259]
[1718186144082,2.4251,152.57,152.52,2.4257]
[1718186144276,16.0854,152.58,152.48,24.79]
[1718186144468,2.4257,152.54,152.5,2.4261]
[1718186144668,2.4253,152.56,152.48,12.1325]
[1718186144972,0.17,152.55,152.48,2.4264]
[1718186145169,2.4258,152.53,152.48,2.4264]
[1718186145479,2.4254,152.56,152.48,4.853]
[1718186145675,2.4254,152.55,152.48,12.1325]
[1718186145870,2.4253,152.56,152.52,2.4259]
[1718186146076,2.4254,152.55,152.51,2.426]
[1718186146262,2.4253,152.56,152.51,2.426]
[1718186146773,2.4253,152.56,152.49,2.4263]
[1718186146774,2.4258,152.53,152.49,2.4263]
[1718186147587,4.8506,152.56,152.46,12.1338]
[1718186147588,2.4259,152.52,152.48,2.4265]
[1718186147903,2.4255,152.55,152.5,2.4261]
[1718186148393,2.4255,152.55,152.42,24.79]
[1718186148394,2.4259,152.52,152.48,2.4265]
[1718186148864,4.8512,152.54,152.47,2.4266]
[1718186149283,2.426,152.51,152.47,2.4266]
[1718186149482,0.17,152.55,152.42,24.79]
[1718186149685,2.4259,152.52,152.48,2.4265]
[1718186149891,2.4261,152.51,152.47,2.4266]
[1718186150220,2.4263,152.5,152.43,21.8455]
[1718186150393,2.4263,152.5,152.46,2.4267]
[1718186150694,16.9826,152.51,152.41,10.8684]
[1718186150867,6.5402,152.52,152.42,24.8548]
[1718186151062,2.4264,152.49,152.45,2.4269]
[1718186151291,6.5402,152.52,152.42,20.0]
[1718186151791,6.5402,152.52,152.5,2.4261]
[1718186152089,2.4261,152.51,152.47,2.4266]
[1718186152293,6.5402,152.52,152.42,64.54]
[1718186152583,6.5402,152.52,152.5,2.4261]
[1718186153092,6.5402,152.52,152.45,4.8538]
[1718186153276,6.5402,152.52,152.49,2.4262]
[1718186153476,6.5402,152.52,152.5,2.4261]
[1718186154072,6.5402,152.52,152.49,2.4263]
[1718186154774,2.4262,152.5,152.45,4.8539]
[1718186154985,2.4262,152.5,152.46,2.4267]
[1718186155295,2.4261,152.51,152.47,2.4267]
[1718186155486,2.4261,152.51,152.45,4.8539]
[1718186155680,2.4261,152.51,152.47,2.4266]
[1718186155879,2.4262,152.5,152.46,2.4267]
[1718186156498,11.3921,152.52,152.46,2.4267]
[1718186156799,2.4261,152.51,152.47,2.4266]
[1718186157093,6.5402,152.52,152.42,64.54]
[1718186157306,8.9661,152.52,152.48,2.4264]
[1718186157589,8.9661,152.52,152.46,2.4267]
[1718186157590,2.4263,152.5,152.46,2.4267]
[1718186157983,2.4264,152.49,152.45,2.4269]
[1718186158185,2.4262,152.5,152.46,2.4268]
[1718186158567,2.4262,152.5,152.43,12.1365]
[1718186158568,2.4262,152.5,152.47,2.4266]
[1718186158767,2.4262,152.5,152.46,2.4268]
[1718186158971,2.4263,152.49,152.46,2.4268]
[1718186159200,2.4266,152.48,152.44,2.427]
[1718186159371,2.4268,152.47,152.43,2.4272]
[1718186159573,5.1926,152.5,152.43,2.4271]
[1718186159884,5.1926,152.5,152.44,2.427]
[1718186159885,2.4266,152.48,152.44,2.427]
[1718186160080,2.4267,152.47,152.43,2.4272]
[1718186160385,12.4713,152.5,152.42,2.4274]
[1718186160386,2.4269,152.46,152.42,2.4274]
[1718186160777,2.4267,152.47,152.43,2.4273]
[1718186160987,100.34,152.5,152.4,4.8555]
[1718186161198,2.4269,152.46,152.41,2.4276]
[1718186161381,4.8531,152.48,152.41,2.4276]
[1718186161382,2.427,152.45,152.41,2.4276]
[1718186161693,0.17,152.48,152.43,2.4273]
[1718186161907,2.4267,152.47,152.43,2.4273]
[1718186162481,0.34,152.49,152.41,7.2829]
[1718186162709,2.4266,152.48,152.44,2.427]
[1718186162889,2.4267,152.47,152.44,2.427]
[1718186163385,17.5775,152.51,152.44,4.8542]
[1718186163603,15.1513,152.51,152.43,4.8545]
[1718186163807,15.1513,152.51,152.45,9.7077]
[1718186163981,15.1513,152.51,152.46,4.8534]
[1718186164181,2.4263,152.5,152.43,4.8546]
[1718186164402,15.1513,152.51,152.4,24.79]
[1718186164610,15.1513,152.51,152.48,2.4264]
[1718186164920,15.1513,152.51,152.48,2.4265]
[1718186165262,6.5402,152.52,152.5,2.4261]
[1718186165380,6.5402,152.52,152.43,34.4988]
[1718186165580,2.426,152.51,152.44,4.8543]
[1718186165891,6.5402,152.52,152.45,2.4269]
[1718186166205,6.5402,152.52,152.4,6.4934]
[1718186166510,2.4264,152.49,152.44,2.427]
[1718186166721,4.8528,152.49,152.4,6.4934]
[1718186167005,0.17,152.5,152.45,4.854]
[1718186167309,2.4263,152.5,152.45,2.4269]
[1718186167486,2.4264,152.49,152.45,2.4269]
[1718186167991,2.4264,152.49,152.45,2.427]
[1718186168187,2.4264,152.49,152.42,4.8549]
[1718186168384,8.9662,152.52,152.45,14.5615]
[1718186168678,6.5402,152.52,152.47,4.8532]
[1718186168880,6.5402,152.52,152.46,16.987]
[1718186168881,2.4259,152.53,152.46,4.8534]
[1718186169101,2.4256,152.54,152.49,2.4262]
[1718186169308,8.7083,152.56,152.51,2.4259]
[1718186169518,2.4255,152.55,152.5,2.4261]
[1718186169828,6.283,152.56,152.46,24.79]
[1718186170039,2.4255,152.55,152.5,2.4261]
[1718186170326,6.283,152.56,152.44,19.92]
[1718186170517,2.4255,152.55,152.5,2.4261]
[1718186170831,2.4254,152.55,152.47,4.8532]
[1718186171005,6.283,152.56,152.47,4.8532]
[1718186171327,2.4254,152.55,152.5,2.426]
[1718186171527,2.4258,152.53,152.48,2.4265]
[1718186172028,2.4258,152.53,152.48,2.4264]
[1718186172233,2.4257,152.53,152.44,4.8542]
[1718186172537,2.4259,152.52,152.44,24.8542]
[1718186172826,2.4262,152.5,152.44,2.427]
[1718186173038,18.8082,152.51,152.46,2.4268]
[1718186173606,18.8082,152.51,152.43,4.8546]
[1718186173607,16.382,152.51,152.49,2.4262]
[1718186173832,16.382,152.51,152.44,4.8541]
[1718186174018,18.808,152.51,152.44,4.8541]
[1718186174230,18.808,152.51,152.46,2.4268]
[1718186174440,16.382,152.51,152.47,2.4266]
[1718186175118,16.382,152.51,152.48,2.4265]
[1718186175319,16.382,152.51,152.46,2.4268]
[1718186175620,16.6417,152.55,152.45,4.8537]
[1718186175929,2.4257,152.54,152.48,2.4265]
[1718186176129,2.4257,152.54,152.49,2.4262]
[1718186176707,19.0672,152.55,152.5,2.4262]
[1718186178030,16.6417,152.55,152.51,2.4259]
[1718186178213,16.6417,152.55,152.48,4.8529]
[1718186178413,16.6417,152.55,152.51,2.4259]
[1718186178608,16.6417,152.55,152.46,4.8536]
[1718186178809,2.4257,152.53,152.48,2.4264]
[1718186179010,2.4256,152.54,152.49,2.4263]
[1718186179237,16.6417,152.55,152.49,2.4263]
[1718186179238,2.4257,152.53,152.49,2.4263]
[1718186179436,116.6417,152.55,152.44,2.4271]
[1718186179747,116.6417,152.55,152.41,24.79]
[1718186179748,0.51,152.54,152.41,24.79]
[1718186179912,2.426,152.51,152.47,2.4266]
[1718186180116,2.426,152.51,152.46,2.4267]
[1718186180333,2.4259,152.52,152.47,2.4265]
[1718186180529,2.4258,152.53,152.48,2.4265]
[1718186180717,2.4258,152.53,152.48,2.4264]
[1718186180919,2.4259,152.52,152.48,2.4264]
[1718186181120,2.426,152.51,152.47,2.4266]
[1718186181818,2.4259,152.52,152.47,2.4266]
[1718186182019,7.4469,152.54,152.46,2.4267]
[1718186182337,2.4262,152.5,152.45,2.4269]
[1718186182731,5.0215,152.53,152.45,2.4269]
[1718186182732,2.4264,152.49,152.45,2.4269]
[1718186183319,2.4264,152.49,152.42,4.8548]
[1718186183320,2.4264,152.49,152.44,2.4271]
[1718186183521,12.1297,152.52,152.43,2.4272]
[1718186183522,2.4266,152.48,152.43,2.4272]
[1718186183731,2.4266,152.48,152.44,2.4271]
[1718186183926,2.4266,152.48,152.41,9.7102]
[1718186184116,2.4264,152.49,152.45,2.427]
[1718186184322,2.4267,152.47,152.43,2.4272]
[1718186184640,2.4266,152.48,152.43,2.4272]
[1718186184815,2.4267,152.47,152.43,2.4272]
[1718186185014,2.4266,152.48,152.44,2.4271]
[1718186185249,2.4267,152.47,152.43,2.4272]
[1718186185428,2.4267,152.47,152.42,2.4274]
[1718186185936,2.4269,152.46,152.42,2.4274]
[1718186186343,2.4267,152.47,152.42,2.4274]
[1718186186526,2.4268,152.46,152.42,2.4274]
[1718186187236,2.4267,152.47,152.43,2.4273]
[1718186187444,15.9036,152.48,152.43,2.4273]
[1718186187617,15.9036,152.48,152.44,2.4271]
[1718186187940,15.9036,152.48,152.43,2.4272]
[1718186188236,2.4267,152.47,152.43,2.4272]
[1718186188615,2.4269,152.46,152.42,2.4274]
[1718186188820,2.4269,152.46,152.41,2.4275]
[1718186189235,2.4269,152.46,152.42,2.4274]
[1718186189535,2.4267,152.47,152.42,2.4274]
[1718186189712,18.3302,152.48,152.41,21.8484]
[1718186189919,18.3302,152.48,152.44,2.4271]
[1718186190224,28.17096961,152.48,152.44,2.4271]
[1718186190413,30.59766961,152.48,152.38,32.0744]
[1718186190742,25.74436961,152.48,152.43,2.4273]
[1718186191040,25.74436961,152.48,152.41,4.8552]
[1718186191222,2.4268,152.47,152.43,2.4272]
[1718186191621,12.26799368,152.47,152.43,2.4272]
[1718186192037,12.26789368,152.47,152.43,2.4273]
[1718186192617,12.26789368,152.47,152.4,12.1388]
[1718186192618,9.84119368,152.47,152.4,12.1388]
[1718186192815,9.84119368,152.47,152.39,12.1393]
[1718186193038,12.26809368,152.46,152.42,2.4273]
[1718186193244,2.427,152.45,152.41,2.4275]
[1718186193430,2.4269,152.46,152.42,2.4274]
[1718186193626,9.84119368,152.47,152.41,4.8552]
[1718186193820,12.26789368,152.47,152.43,2.4271]
[1718186194020,9.84119368,152.47,152.4,16.9943]
[1718186194244,12.26789368,152.47,152.43,2.4272]
[1718186194539,2.427,152.45,152.42,2.4274]
[1718186194749,2.4269,152.46,152.42,2.4274]
[1718186195049,9.84119368,152.47,152.42,2.4274]
[1718186195236,9.84119368,152.47,152.4,2.4276]
[1718186195442,2.4272,152.44,152.4,2.4277]
[1718186196828,2.427,152.45,152.41,2.4275]
[1718186197029,2.4272,152.44,152.4,2.4277]
[1718186197223,9.84119368,152.46,152.35,23.6821]
[1718186197450,2.4271,152.45,152.41,2.4276]
[1718186197645,9.84119368,152.46,152.42,2.4274]
[1718186197948,2.4272,152.44,152.41,2.4275]
[1718186198151,9.84119368,152.46,152.39,4.8558]
[1718186198152,12.26819368,152.46,152.42,2.4274]
[1718186198540,2.427,152.46,152.42,2.4274]
[1718186198934,9.84119368,152.47,152.37,24.79]
[1718186199123,12.26789368,152.47,152.43,2.4272]
[1718186199452,15.9036,152.48,152.44,2.4271]
[1718186199453,28.17139368,152.48,152.44,2.4271]
[1718186199952,2.4269,152.46,152.4,4.8555]
[1718186200265,2.4267,152.47,152.43,2.4272]
[1718186200428,2.427,152.45,152.42,2.4274]
[1718186200840,2.4272,152.44,152.41,2.4276]
[1718186201048,2.4272,152.44,152.4,2.4277]
[1718186201254,2.4273,152.44,152.4,2.4278]
[1718186201436,21.8432,152.45,152.39,2.4279]
[1718186201747,14.69489368,152.46,152.39,4.8558]
[1718186201948,14.69489368,152.46,152.41,2.4276]
[1718186202146,2.4272,152.44,152.4,2.4277]
[1718186202539,2.4272,152.44,152.41,2.4276]
[1718186203250,2.4271,152.45,152.41,2.4276]
[1718186203446,2.4271,152.45,152.4,4.8556]
[1718186203644,2.4272,152.44,152.38,21.8524]
[1718186203833,2.4274,152.43,152.39,2.4278]
[1718186204236,2.4274,152.43,152.4,2.4277]
[1718186204724,2.4272,152.44,152.4,2.4277]
[1718186204930,2.4272,152.44,152.41,2.4276]
[1718186205132,2.4271,152.45,152.42,2.4274]
[1718186205533,2.4271,152.44,152.41,2.4275]
[1718186206654,2.4271,152.45,152.41,2.4275]
[1718186207155,2.4271,152.44,152.41,2.4275]
[1718186207531,2.4271,152.45,152.41,2.4275]
[1718186208254,2.4271,152.45,152.42,2.4274]
[1718186208549,9.84119368,152.46,152.43,2.4273]
[1718186208550,12.26809368,152.46,152.43,2.4273]
[1718186208943,9.84119368,152.46,152.43,2.4273]
[1718186209141,12.26799368,152.46,152.43,2.4272]
[1718186209535,9.84119368,152.46,152.42,9.7099]
[1718186209749,9.84119368,152.46,152.44,2.427]
[1718186209935,2.4269,152.46,152.38,6.5305]
[1718186210143,2.4269,152.46,152.42,2.4274]
[1718186210347,2.427,152.45,152.42,2.4274]
[1718186210655,2.427,152.45,152.4,2.4277]
[1718186210656,2.4272,152.44,152.4,2.4277]
[1718186210858,2.4273,152.43,152.38,4.8561]
[1718186211042,2.4275,152.42,152.39,2.4279]
[1718186211437,16.9893,152.45,152.35,23.6821]
[1718186211438,100.0,152.45,152.35,23.6821]
[1718186211641,2.428,152.39,152.36,2.4283]
[1718186212055,7.2825,152.42,152.36,4.8568]
[1718186212056,2.4276,152.42,152.36,4.8568]
[1718186212247,2.4276,152.41,152.38,2.428]
[1718186212445,2.4276,152.41,152.37,2.4282]
[1718186212645,2.4276,152.41,152.37,2.4281]
[1718186212957,2.4275,152.42,152.39,2.4279]
[1718186213143,9.84278728,152.45,152.38,21.8531]
[1718186213349,2.4273,152.44,152.4,2.4277]
[1718186213559,9.84278728,152.45,152.38,21.8531]
[1718186213560,12.26988728,152.45,152.41,2.4276]
[1718186213743,2.4271,152.44,152.41,2.4276]
[1718186213943,2.4273,152.43,152.4,2.4277]
[1718186214153,2.4272,152.44,152.4,2.4277]
[1718186214556,14.69668728,152.46,152.41,2.4276]
[1718186214755,9.84278728,152.46,152.39,12.1397]
[1718186215058,2.4271,152.45,152.42,2.4274]
[1718186215639,2.427,152.45,152.42,2.4274]
[1718186216440,12.26978728,152.45,152.42,2.4274]
[1718186216967,2.4272,152.44,152.4,2.4277]
[1718186217144,2.4272,152.44,152.38,4.8561]
[1718186217471,2.4272,152.44,152.41,2.4275]
[1718186218062,9.84278728,152.45,152.39,4.8559]
[1718186218371,9.84278728,152.45,152.42,2.4273]
[1718186218546,9.84278728,152.45,152.43,2.4273]
[1718186218749,12.26978728,152.45,152.41,2.4275]
[1718186219059,2.4272,152.44,152.41,2.4275]
[1718186220563,2.4272,152.44,152.4,2.4277]
[1718186220753,9.84278728,152.45,152.4,2.4277]
[1718186221065,9.84278728,152.45,152.36,4.8567]
[1718186221271,12.26988728,152.45,152.35,16.3977]
[1718186221480,12.26998728,152.44,152.41,2.4275]
[1718186221962,9.84278728,152.45,152.38,2.428]
[1718186222168,2.4275,152.42,152.39,2.4278]
[1718186222368,2.4275,152.42,152.38,2.428]
[1718186222589,2.4274,152.43,152.4,2.4278]
[1718186222877,9.84278728,152.44,152.4,2.4277]
[1718186223045,2.4272,152.44,152.41,2.4276]
[1718186223678,2.4273,152.43,152.4,2.4277]
[1718186223839,2.4273,152.43,152.39,2.4279]
[1718186224248,2.4273,152.43,152.4,2.4277]
[1718186224460,2.4282,152.38,152.32,12.1453]
[1718186224774,2.4285,152.36,152.32,2.429]
[1718186224975,2.4283,152.37,152.33,2.4289]
[1718186225671,2.4287,152.35,152.31,2.4292]
[1718186226044,12.27511534,152.37,152.3,4.8587]
[1718186226252,12.27511534,152.37,152.33,2.4289]
[1718186226653,9.8824,152.39,152.32,2.429]
[1718186226654,2.4284,152.36,152.32,2.429]
[1718186227174,2.4283,152.37,152.33,2.4289]
[1718186227382,2.4283,152.37,152.27,4.8597]
[1718186227383,2.429,152.33,152.27,4.8597]
[1718186227686,2.4291,152.32,152.28,2.4296]
[1718186227860,2.4289,152.34,152.29,2.4295]
[1718186228058,12.143,152.35,152.26,4.8599]
[1718186228371,2.4287,152.34,152.3,2.4293]
[1718186228561,2.4287,152.34,152.29,2.4294]
[1718186228763,2.4287,152.34,152.26,9.7199]
[1718186228764,4.8572,152.35,152.26,7.2901]
[1718186228951,2.4288,152.34,152.29,2.4294]
[1718186229148,9.84681534,152.35,152.29,2.4294]
[1718186229149,2.4289,152.33,152.29,2.4294]
[1718186229372,2.4291,152.32,152.28,2.4296]
[1718186229555,2.429,152.33,152.29,2.4295]
[1718186229755,2.4291,152.32,152.28,2.4296]
[1718186230368,2.4289,152.33,152.29,2.4295]
[1718186230558,2.4296,152.29,152.25,2.4302]
[1718186231078,2.4297,152.28,152.24,2.4302]
[1718186231279,2.4297,152.28,152.23,2.4304]
[1718186231663,4.8589,152.3,152.21,5.7248]
[1718186231989,2.4302,152.25,152.21,3.294]
[1718186232668,0.17,152.26,152.21,0.8632]
[1718186232991,2.4303,152.24,152.21,0.8632]
[1718186233171,0.17,152.25,152.21,0.8632]
[1718186233887,2.4306,152.23,152.21,0.8632]
[1718186234078,2.6006,152.22,152.21,0.8632]
[1718186234380,2.7706,152.22,152.21,0.8632]
[1718186235370,0.34,152.22,152.21,0.8632]
[1718186235573,5.0304,152.25,152.21,0.8632]
[1718186235882,2.4306,152.23,152.21,0.8632]
[1718186236086,0.51,152.24,152.21,0.8632]
[1718186236267,4.8596,152.28,152.21,0.8632]
[1718186236587,2.4297,152.28,152.24,2.4302]
[1718186236881,2.4299,152.27,152.21,0.8632]
[1718186237088,2.4299,152.27,152.22,2.4305]
[1718186237269,2.43,152.26,152.21,3.294]
[1718186237582,28.4914,152.29,152.21,3.294]
[1718186237583,2.4302,152.25,152.21,3.294]
[1718186237991,2.4305,152.23,152.21,0.8632]
[1718186238783,2.4306,152.22,152.21,0.8632]
[1718186238961,2.4306,152.23,152.21,0.8632]
[1718186239163,0.51,152.24,152.21,0.8632]
[1718186239378,2.4304,152.24,152.21,0.8632]
[1718186240681,2.4305,152.23,152.21,0.8632]
[1718186241589,0.34,152.25,152.21,0.8632]
[1718186241792,0.34,152.25,152.21,3.294]
[1718186242091,2.4303,152.24,152.21,3.294]
[1718186242270,2.4303,152.24,152.21,0.8632]
[1718186242471,2.4303,152.24,152.21,3.294]
[1718186242668,0.34,152.25,152.21,0.8632]
[1718186242887,2.4305,152.23,152.21,0.8632]
[1718186243699,2.4306,152.22,152.21,0.8632]
[1718186244067,2.4306,152.23,152.21,0.8632]
[1718186244265,2.4304,152.24,152.21,0.8632]
[1718186244468,2.7702,152.25,152.21,0.8632]
[1718186244691,12.1492,152.28,152.21,0.8632]
[1718186244692,2.4298,152.28,152.22,12.1532]
[1718186244996,16.3433,152.29,152.22,12.1532]
[1718186244997,18.7729,152.29,152.25,2.4301]
[1718186245192,4.8589,152.3,152.24,4.8606]
[1718186245193,2.4295,152.3,152.24,4.8606]
[1718186245518,2.4295,152.3,152.27,2.4298]
[1718186245664,2.4295,152.3,152.24,4.8606]
[1718186246003,2.4295,152.3,152.26,2.4299]
[1718186246165,2.4293,152.31,152.27,2.4298]
[1718186246370,2.4296,152.29,152.25,2.43]
[1718186246588,2.4296,152.29,152.23,4.8609]
[1718186246589,2.4296,152.29,152.26,2.43]
[1718186246791,2.4293,152.31,152.27,2.4298]
[1718186247387,4.8579,152.33,152.28,2.4296]
[1718186247581,2.4293,152.31,152.27,2.4298]
[1718186249081,2.4294,152.3,152.27,2.4298]
[1718186249871,2.4294,152.3,152.26,2.4299]
[1718186250496,2.4296,152.29,152.24,4.8606]
[1718186250670,2.4296,152.29,152.25,2.4301]
[1718186250879,2.4296,152.29,152.26,2.43]
[1718186251087,2.4296,152.29,152.25,2.4301]
[1718186251789,2.4297,152.28,152.24,2.4302]
[1718186252102,2.4297,152.28,152.25,2.4301]
[1718186252304,2.4297,152.28,152.23,4.8608]
[1718186252305,2.4299,152.27,152.22,15.5201]
[1718186252672,2.4301,152.26,152.22,17.9507]
[1718186253082,2.4301,152.26,152.22,2.4306]
[1718186253696,12.1487,152.28,152.22,2.4306]
[1718186253697,2.4302,152.25,152.22,2.4306]
[1718186254080,2.4301,152.26,152.22,2.4306]
[1718186254289,2.4298,152.28,152.24,2.4302]
[1718186254602,2.4299,152.27,152.24,2.4302]
[1718186254903,2.43,152.26,152.23,2.4304]
[1718186255195,2.4299,152.27,152.23,2.4304]
[1718186255575,0.34,152.26,152.21,0.8632]
[1718186255881,2.4302,152.25,152.21,3.2939]
[1718186256285,2.4302,152.25,152.22,2.4306]
[1718186256901,2.4302,152.25,152.21,3.2939]
[1718186257102,2.4302,152.25,152.22,2.4306]
[1718186258600,2.4302,152.25,152.21,3.2939]
[1718186259104,2.4303,152.24,152.21,3.2939]
[1718186259496,2.4306,152.23,152.21,0.8632]
[1718186261303,4.07518343,152.25,152.21,0.8632]
[1718186261498,0.17,152.24,152.21,3.2939]
[1718186261690,2.7703,152.25,152.21,3.2938]
[1718186262206,2.7703,152.25,152.22,2.4306]
[1718186262415,2.7701,152.26,152.22,2.4306]
[1718186262583,2.7701,152.26,152.22,2.4305]
[1718186262990,2.7701,152.26,152.21,0.8632]
[1718186262991,2.4301,152.26,152.23,2.4305]
[1718186263193,2.43,152.26,152.23,2.4305]
[1718186263592,2.4299,152.27,152.23,2.4305]
[1718186263904,2.43,152.26,152.23,2.4305]
[1718186265121,26.8629,152.28,152.22,2.4306]
[1718186265122,2.4302,152.25,152.22,2.4306]
[1718186265518,2.4306,152.22,152.21,0.8632]
[1718186265806,2.4306,152.23,152.21,0.8632]
[1718186266186,2.4306,152.22,152.21,0.8632]
[1718186266381,2.4306,152.23,152.21,0.8632]
[1718186266594,2.4306,152.22,152.21,0.8632]
[1718186268918,2.4306,152.23,152.21,0.8632]
[1718186269502,2.4305,152.23,152.21,0.8632]
[1718186269714,0.34,152.24,152.21,0.8632]
[1718186270210,2.4306,152.22,152.21,0.8632]
[1718186270406,2.4306,152.23,152.21,0.8632]
[1718186273128,2.7704,152.24,152.21,3.294]
[1718186273328,0.34,152.23,152.21,3.294]
[1718186274001,2.7705,152.23,152.21,0.8632]
[1718186274511,0.17,152.23,152.21,3.294]
[1718186274713,10.19484813,152.24,152.22,2.4306]
[1718186274914,12.45514813,152.25,152.22,2.4306]
[1718186275231,12.45504813,152.25,152.22,2.4306]
[1718186275403,12.45504813,152.25,152.21,5.7248]
[1718186275404,9.85484813,152.25,152.21,13.0172]
[1718186277936,0.17,152.25,152.23,4.861]
[1718186278237,2.6002,152.25,152.22,2.4305]
[1718186279129,2.4304,152.24,152.21,3.2939]
[1718186279706,2.4303,152.24,152.21,3.2939]
[1718186280332,12.45538559,152.25,152.22,2.4306]
[1718186280526,0.17,152.25,152.23,2.4304]
[1718186281034,5.0304,152.25,152.21,0.8632]
[1718186281208,2.6003,152.25,152.22,2.4305]
[1718186282331,2.6002,152.25,152.22,2.4305]
[1718186285619,0.17,152.25,152.23,2.4305]
[1718186287511,2.6002,152.25,152.23,2.4305]
[1718186287710,0.17,152.25,152.23,2.4305]
[1718186287905,12.794776,152.26,152.23,2.4305]
[1718186288426,10.194676,152.26,152.24,2.4303]
[1718186288604,12.454776,152.26,152.23,2.4304]
[1718186289832,10.024676,152.26,152.24,2.4303]
[1718186290141,10.02430853,152.26,152.24,2.4303]
[1718186290517,2.6,152.26,152.23,2.4304]
[1718186290720,0.17,152.26,152.24,2.4303]
[1718186290930,10.02430853,152.26,152.24,2.4303]
[1718186294035,2.4301,152.26,152.23,10.7204]
[1718186294228,2.4301,152.26,152.23,2.4304]
[1718186294434,2.4301,152.26,152.21,13.017]
[1718186294435,2.4303,152.25,152.22,2.4306]
[1718186294632,2.4304,152.24,152.21,9.1532]
[1718186294814,2.4302,152.25,152.22,2.4306]
[1718186295142,12.45336235,152.26,152.21,14.0149]
[1718186295355,9.85326235,152.25,152.21,14.0149]
[1718186295518,9.85326235,152.25,152.23,2.4305]
[1718186295720,9.85326235,152.25,152.21,14.0149]
[1718186296053,2.4302,152.25,152.22,2.4306]
[1718186296546,9.85326235,152.25,152.21,14.0148]
[1718186296744,12.28346235,152.25,152.22,2.4306]
[1718186296953,12.28346235,152.25,152.22,10.7206]
[1718186297429,9.85326235,152.25,152.23,2.4305]
[1718186299534,9.85326235,152.25,152.23,8.29]
[1718186299737,9.85326235,152.25,152.23,10.7204]
[1718186300155,9.85326235,152.25,152.23,2.4304]